[Event "Live Chess"]
[Site "Chess.com"]
[Date "2024.06.02"]
[Round "-"]
[White "TheSmoulderingMaster"]
[Black "Victor_Bondar"]
[Result "1-0"]
[WhiteElo "1774"]
[BlackElo "1458"]
[TimeControl "300"]
[EndTime "5:12:13 PDT"]
[Termination "TheSmoulderingMaster won by checkmate"]

1. e4 {[%clk 0:04:57.6]} 1... d5 {[%clk 0:04:56.6]} 2. exd5 {[%clk 0:04:56.4]}
2... Qxd5 {[%clk 0:04:46.1]} 3. Nc3 {[%clk 0:04:55.5]} 3... Qa5 {[%clk
0:04:45.6]} 4. d4 {[%clk 0:04:54.6]} 4... Nf6 {[%clk 0:04:44.9]} 5. Nf3 {[%clk
0:04:53.8]} 5... Bg4 {[%clk 0:04:43.1]} 6. Be2 {[%clk 0:04:52.1]} 6... c6 {[%clk
0:04:42.3]} 7. O-O {[%clk 0:04:51.2]} 7... e6 {[%clk 0:04:40.5]} 8. Ne5 {[%clk
0:04:50.1]} 8... Bf5 {[%clk 0:04:37.8]} 9. Bd2 {[%clk 0:04:48.1]} 9... Qc7
{[%clk 0:04:32.8]} 10. Bf4 {[%clk 0:04:46.1]} 10... Bd6 {[%clk 0:04:31.7]} 11.
Bf3 {[%clk 0:04:39.5]} 11... Nbd7 {[%clk 0:04:29.8]} 12. Re1 {[%clk 0:04:37.6]}
12... h6 {[%clk 0:04:26.9]} 13. Qd2 {[%clk 0:04:32.3]} 13... g5 {[%clk
0:04:25.8]} 14. Bg3 {[%clk 0:04:29.4]} 14... Nxe5 {[%clk 0:04:14.8]} 15. dxe5
{[%clk 0:04:26.1]} 15... O-O-O {[%clk 0:04:05]} 16. exd6 {[%clk 0:04:23.9]}
16... Rxd6 {[%clk 0:04:04]} 17. Qxd6 {[%clk 0:04:21.4]} 17... Qxd6 {[%clk
0:04:02.8]} 18. Bxd6 {[%clk 0:04:20.1]} 18... Nd5 {[%clk 0:04:01.3]} 19. Nxd5
{[%clk 0:04:18.3]} 19... cxd5 {[%clk 0:03:58.3]} 20. c4 {[%clk 0:04:15.7]} 20...
g4 {[%clk 0:03:57.4]} 21. Be4 {[%clk 0:04:13.5]} 21... Bxe4 {[%clk 0:03:50.8]}
22. Rxe4 {[%clk 0:04:08.7]} 22... dxe4 {[%clk 0:03:48.3]} 23. c5 {[%clk
0:04:08.1]} 23... f5 {[%clk 0:03:42.1]} 24. Kf1 {[%clk 0:04:06.5]} 24... b6
{[%clk 0:03:39.8]} 25. b4 {[%clk 0:04:04.8]} 25... h5 {[%clk 0:03:37]} 26. Ke2
{[%clk 0:04:03.2]} 26... Kd7 {[%clk 0:03:29.8]} 27. Ke3 {[%clk 0:04:01.8]} 27...
h4 {[%clk 0:03:20.6]} 28. a4 {[%clk 0:03:57.8]} 28... g3 {[%clk 0:03:08.6]} 29.
hxg3 {[%clk 0:03:56]} 29... hxg3 {[%clk 0:03:07.5]} 30. fxg3 {[%clk 0:03:55.3]}
30... Rh2 {[%clk 0:02:51.3]} 31. Ra2 {[%clk 0:03:49.1]} 31... Rh1 {[%clk
0:02:49]} 32. Kd4 {[%clk 0:03:47.5]} 32... Rd1+ {[%clk 0:02:41]} 33. Ke5 {[%clk
0:03:46.5]} 33... e3 {[%clk 0:02:31.3]} 34. Re2 {[%clk 0:03:42.7]} 34... Rd2
{[%clk 0:02:29.2]} 35. Rxe3 {[%clk 0:03:38.4]} 35... Rxg2 {[%clk 0:02:27.9]} 36.
Kf6 {[%clk 0:03:37.2]} 36... Rb2 {[%clk 0:02:24.5]} 37. Rxe6 {[%clk 0:03:34.6]}
37... bxc5 {[%clk 0:02:13]} 38. bxc5 {[%clk 0:03:33.3]} 38... Rb3 {[%clk
0:02:06.3]} 39. Kxf5 {[%clk 0:03:29.1]} 39... Rf3+ {[%clk 0:02:03.6]} 40. Ke4
{[%clk 0:03:22.8]} 40... Rc3 {[%clk 0:01:55.2]} 41. Re7+ {[%clk 0:03:21.3]}
41... Kc6 {[%clk 0:01:53.3]} 42. Rc7# {[%clk 0:03:20.3]} 1-0

[Event "Live Chess"]
[Site "Chess.com"]
[Date "2024.06.02"]
[Round "-"]
[White "BearFromUkraine"]
[Black "FlyingChessKestrel13"]
[Result "0-1"]
[WhiteElo "988"]
[BlackElo "2072"]
[TimeControl "300"]
[EndTime "5:12:24 PDT"]
[Termination "FlyingChessKestrel13 won by resignation"]

1. e4 {[%clk 0:04:52.5]} 1... c5 {[%clk 0:04:51.3]} 2. Nf3 {[%clk 0:04:51.2]}
2... Nf6 {[%clk 0:04:23.1]} 3. Nc3 {[%clk 0:04:45.8]} 3... d6 {[%clk 0:04:21.3]}
4. h3 {[%clk 0:04:43.7]} 4... g6 {[%clk 0:04:20.6]} 5. d3 {[%clk 0:04:42.1]}
5... Bg7 {[%clk 0:04:20.2]} 6. Be2 {[%clk 0:04:39.9]} 6... O-O {[%clk
0:04:19.8]} 7. O-O {[%clk 0:04:38.6]} 7... a6 {[%clk 0:04:19.3]} 8. Bg5 {[%clk
0:04:32.6]} 8... b5 {[%clk 0:04:18.1]} 9. a3 {[%clk 0:04:30.6]} 9... Nbd7 {[%clk
0:04:15.6]} 10. Qd2 {[%clk 0:04:28]} 10... Rb8 {[%clk 0:04:12.3]} 11. Bh6 {[%clk
0:04:25.1]} 11... b4 {[%clk 0:04:10.3]} 12. axb4 {[%clk 0:04:18.1]} 12... cxb4
{[%clk 0:04:09.2]} 13. Bxg7 {[%clk 0:04:16.6]} 13... Kxg7 {[%clk 0:04:05.6]} 14.
Nd5 {[%clk 0:04:07.8]} 14... Nxd5 {[%clk 0:04:02.7]} 15. exd5 {[%clk 0:04:06.7]}
15... Nf6 {[%clk 0:04:02.3]} 16. Rxa6 {[%clk 0:03:59.2]} 16... Bxa6 {[%clk
0:04:00.5]} 0-1

[Event "Live Chess"]
[Site "Chess.com"]
[Date "2024.06.02"]
[Round "-"]
[White "matt1979"]
[Black "JanMur7"]
[Result "0-1"]
[WhiteElo "1413"]
[BlackElo "2296"]
[TimeControl "300"]
[EndTime "5:12:34 PDT"]
[Termination "JanMur7 won by resignation"]

1. f4 {[%clk 0:04:58]} 1... e5 {[%clk 0:04:58.7]} 2. fxe5 {[%clk 0:04:56.3]}
2... d6 {[%clk 0:04:58.1]} 3. exd6 {[%clk 0:04:55.6]} 3... Bxd6 {[%clk
0:04:57.7]} 4. Nf3 {[%clk 0:04:54.8]} 4... g5 {[%clk 0:04:56.9]} 5. g3 {[%clk
0:04:53.2]} 5... h5 {[%clk 0:04:55.1]} 6. d4 {[%clk 0:04:50.4]} 6... f6 {[%clk
0:04:53]} 7. Bg2 {[%clk 0:04:48.9]} 7... h4 {[%clk 0:04:51.9]} 8. gxh4 {[%clk
0:04:21.1]} 8... g4 {[%clk 0:04:40.2]} 9. Ng1 {[%clk 0:04:05.8]} 9... f5 {[%clk
0:04:28.5]} 10. Bg5 {[%clk 0:04:00.5]} 10... Be7 {[%clk 0:04:25.6]} 11. Bxe7
{[%clk 0:03:58.9]} 11... Qxe7 {[%clk 0:04:25.5]} 12. Qd3 {[%clk 0:03:49.1]}
12... Qxh4+ {[%clk 0:04:21.7]} 13. Qg3 {[%clk 0:03:47.5]} 13... Nc6 {[%clk
0:04:10.3]} 14. Qxh4 {[%clk 0:03:43.7]} 14... Rxh4 {[%clk 0:04:09.6]} 15. c3
{[%clk 0:03:42.9]} 15... Nf6 {[%clk 0:04:04.6]} 16. Bxc6+ {[%clk 0:03:39.7]}
16... bxc6 {[%clk 0:03:31.3]} 17. Nd2 {[%clk 0:03:34.5]} 17... c5 {[%clk
0:03:21.6]} 18. e3 {[%clk 0:03:23.5]} 18... Bb7 {[%clk 0:03:17.4]} 19. e4 {[%clk
0:03:18.1]} 19... Nxe4 {[%clk 0:03:14.5]} 20. Nxe4 {[%clk 0:03:06.7]} 20... Bxe4
{[%clk 0:03:12.1]} 21. O-O-O {[%clk 0:02:59.8]} 21... Bxh1 {[%clk 0:03:09.7]}
22. Ne2 {[%clk 0:02:57.7]} 22... Bf3 {[%clk 0:03:08.2]} 23. Re1 {[%clk
0:02:56.8]} 23... Bxe2 {[%clk 0:03:07.2]} 24. Rxe2+ {[%clk 0:02:55.8]} 24... Kf7
{[%clk 0:03:06.7]} 25. dxc5 {[%clk 0:02:50.9]} 25... Re8 {[%clk 0:03:04.8]} 26.
Rd2 {[%clk 0:02:46.9]} 26... f4 {[%clk 0:03:02.7]} 27. Rc2 {[%clk 0:02:44]}
27... g3 {[%clk 0:03:00.8]} 0-1

[Event "Live Chess"]
[Site "Chess.com"]
[Date "2024.06.02"]
[Round "-"]
[White "elis06"]
[Black "degringolade64"]
[Result "1-0"]
[WhiteElo "2350"]
[BlackElo "2125"]
[TimeControl "300"]
[EndTime "5:12:42 PDT"]
[Termination "elis06 won by resignation"]

1. d4 {[%clk 0:04:57.1]} 1... Nf6 {[%clk 0:04:58]} 2. Nf3 {[%clk 0:04:55.5]}
2... d5 {[%clk 0:04:56.3]} 3. Bf4 {[%clk 0:04:54.4]} 3... c5 {[%clk 0:04:53.8]}
4. e3 {[%clk 0:04:53.6]} 4... Nc6 {[%clk 0:04:53.2]} 5. c3 {[%clk 0:04:52.1]}
5... Qb6 {[%clk 0:04:52.8]} 6. Qc1 {[%clk 0:04:42.1]} 6... Bf5 {[%clk
0:04:45.8]} 7. Nbd2 {[%clk 0:04:40.7]} 7... cxd4 {[%clk 0:04:44.1]} 8. exd4
{[%clk 0:04:38.9]} 8... Rc8 {[%clk 0:04:42.1]} 9. Be2 {[%clk 0:04:29.9]} 9... e6
{[%clk 0:04:39.2]} 10. O-O {[%clk 0:04:28.7]} 10... Be7 {[%clk 0:04:36.1]} 11.
a3 {[%clk 0:04:16.2]} 11... O-O {[%clk 0:04:29.2]} 12. h3 {[%clk 0:03:50]} 12...
h6 {[%clk 0:04:22.3]} 13. Re1 {[%clk 0:03:43.6]} 13... Ne4 {[%clk 0:04:17.4]}
14. Nxe4 {[%clk 0:03:42.2]} 14... dxe4 {[%clk 0:04:15.9]} 15. Ne5 {[%clk
0:03:36.8]} 15... Nxd4 {[%clk 0:03:40.5]} 16. Nd7 {[%clk 0:03:21.3]} 16... Nxe2+
{[%clk 0:03:39.2]} 17. Rxe2 {[%clk 0:03:15.9]} 17... Qb5 {[%clk 0:03:38.4]} 18.
Rd2 {[%clk 0:03:00.3]} 18... Rfd8 {[%clk 0:03:31]} 19. Qd1 {[%clk 0:02:53]}
19... Kh8 {[%clk 0:02:17.3]} 20. Ne5 {[%clk 0:02:42.2]} 20... Rxd2 {[%clk
0:02:14]} 21. Qxd2 {[%clk 0:02:40.4]} 21... Qe8 {[%clk 0:01:57.9]} 22. Qe3
{[%clk 0:02:28.9]} 22... g5 {[%clk 0:01:50.5]} 23. Bg3 {[%clk 0:02:26.1]} 23...
f6 {[%clk 0:01:32.3]} 24. Ng4 {[%clk 0:02:18.9]} 24... Qg6 {[%clk 0:01:31.2]}
25. Nh2 {[%clk 0:02:14.3]} 25... h5 {[%clk 0:01:28.4]} 26. Nf1 {[%clk
0:02:11.2]} 26... h4 {[%clk 0:01:22.5]} 27. Bh2 {[%clk 0:02:09.7]} 27... g4
{[%clk 0:01:20.2]} 28. hxg4 {[%clk 0:02:07.4]} 28... Bxg4 {[%clk 0:01:15]} 29.
Kh1 {[%clk 0:02:02]} 29... Bc5 {[%clk 0:01:06.8]} 30. Qf4 {[%clk 0:01:46.5]}
30... e5 {[%clk 0:01:01.5]} 31. Qd2 {[%clk 0:01:42.7]} 31... Rg8 {[%clk
0:00:59.4]} 32. Ne3 {[%clk 0:01:36.6]} 32... Bf3 {[%clk 0:00:47.1]} 33. Rg1
{[%clk 0:01:24.5]} 33... Bxe3 {[%clk 0:00:22.4]} 34. fxe3 {[%clk 0:01:22.4]}
34... Bg4 {[%clk 0:00:18.8]} 35. Qf2 {[%clk 0:01:20.7]} 35... Qh5 {[%clk
0:00:15.9]} 36. Qxf6+ {[%clk 0:01:18.8]} 36... Rg7 {[%clk 0:00:15.5]} 37. Bxe5
{[%clk 0:01:14]} 37... Qh7 {[%clk 0:00:09.8]} 38. Qxg7+ {[%clk 0:01:12.3]} 38...
Qxg7 {[%clk 0:00:08.7]} 39. Bxg7+ {[%clk 0:01:12.2]} 39... Kxg7 {[%clk
0:00:07.5]} 40. Kh2 {[%clk 0:01:11.1]} 1-0

[Event "Live Chess"]
[Site "Chess.com"]
[Date "2024.06.02"]
[Round "-"]
[White "Andriy_Yaremovych"]
[Black "seasidecastle27"]
[Result "0-1"]
[WhiteElo "1626"]
[BlackElo "1944"]
[TimeControl "300"]
[EndTime "5:12:46 PDT"]
[Termination "seasidecastle27 won by resignation"]

1. e4 {[%clk 0:04:59.1]} 1... e6 {[%clk 0:04:57.9]} 2. Nc3 {[%clk 0:04:59]} 2...
d5 {[%clk 0:04:57]} 3. f4 {[%clk 0:04:58.7]} 3... d4 {[%clk 0:04:54.3]} 4. Nce2
{[%clk 0:04:56.4]} 4... c5 {[%clk 0:04:53.5]} 5. Nf3 {[%clk 0:04:55.2]} 5... Nc6
{[%clk 0:04:52.4]} 6. d3 {[%clk 0:04:54.5]} 6... Nf6 {[%clk 0:04:47.1]} 7. Bd2
{[%clk 0:04:54.4]} 7... Be7 {[%clk 0:04:45]} 8. g3 {[%clk 0:04:52.6]} 8... b6
{[%clk 0:04:43.1]} 9. Bg2 {[%clk 0:04:51.8]} 9... Bb7 {[%clk 0:04:42.3]} 10.
Neg1 {[%clk 0:04:50.7]} 10... Qc7 {[%clk 0:04:36.6]} 11. a3 {[%clk 0:04:49.4]}
11... O-O-O {[%clk 0:04:31.9]} 12. Qe2 {[%clk 0:04:48.3]} 12... Ng4 {[%clk
0:04:23.6]} 13. h3 {[%clk 0:04:43.9]} 13... Ne3 {[%clk 0:04:20.2]} 14. Bxe3
{[%clk 0:04:42.4]} 14... dxe3 {[%clk 0:04:18.7]} 15. Qxe3 {[%clk 0:04:41.5]}
15... Nd4 {[%clk 0:04:15.3]} 16. Nxd4 {[%clk 0:04:38.4]} 16... cxd4 {[%clk
0:04:12.8]} 17. Qe2 {[%clk 0:04:37.4]} 17... Kb8 {[%clk 0:04:09.1]} 18. O-O-O
{[%clk 0:04:35.8]} 18... Rc8 {[%clk 0:04:06.3]} 19. Kb1 {[%clk 0:04:33.7]} 19...
Qc6 {[%clk 0:03:55.2]} 20. Nf3 {[%clk 0:04:27.8]} 20... Rhd8 {[%clk 0:03:53.3]}
21. Rd2 {[%clk 0:04:26.5]} 21... Qb5 {[%clk 0:03:49.5]} 22. Ka1 {[%clk
0:04:23.4]} 22... Qa4 {[%clk 0:03:42.8]} 23. Ka2 {[%clk 0:04:20]} 23... b5
{[%clk 0:03:36.3]} 24. Ra1 {[%clk 0:04:03.5]} 24... b4 {[%clk 0:03:27.9]} 25.
Kb1 {[%clk 0:04:02.2]} 25... bxa3 {[%clk 0:03:24.7]} 26. b3 {[%clk 0:04:01.2]}
26... Qb4 {[%clk 0:03:19.7]} 27. Ra2 {[%clk 0:04:00.2]} 27... Rc3 {[%clk
0:03:00.9]} 28. Ne5 {[%clk 0:03:51.9]} 28... a5 {[%clk 0:02:54]} 29. Nc4 {[%clk
0:03:43.9]} 29... a4 {[%clk 0:02:45.4]} 30. Nxa3 {[%clk 0:03:35.7]} 30... axb3
{[%clk 0:02:40.3]} 31. cxb3 {[%clk 0:03:33.5]} 31... Rxb3+ {[%clk 0:02:30]} 32.
Rab2 {[%clk 0:03:31.9]} 32... Qxa3 {[%clk 0:02:24.3]} 33. Rxb3 {[%clk
0:03:30.6]} 33... Qxb3+ {[%clk 0:02:22.2]} 34. Rb2 {[%clk 0:03:30.5]} 34... Qc3
{[%clk 0:02:16.4]} 35. e5 {[%clk 0:03:28.5]} 35... Rd5 {[%clk 0:02:04.2]} 36.
Bxd5 {[%clk 0:03:26.7]} 36... exd5 {[%clk 0:02:01.6]} 37. Qc2 {[%clk 0:03:23.5]}
37... Ba3 {[%clk 0:01:49]} 38. Qxc3 {[%clk 0:03:21.6]} 38... dxc3 {[%clk
0:01:46.6]} 39. Rc2 {[%clk 0:03:19.2]} 39... d4 {[%clk 0:01:42.8]} 40. Ka2
{[%clk 0:03:15.5]} 40... Bb2 {[%clk 0:01:40.1]} 41. f5 {[%clk 0:03:04.6]} 41...
Bd5+ {[%clk 0:01:35.9]} 42. Kb1 {[%clk 0:03:03.4]} 42... Bb3 {[%clk 0:01:33.9]}
43. Rxb2 {[%clk 0:03:01.2]} 43... cxb2 {[%clk 0:01:31.6]} 44. Kxb2 {[%clk
0:03:01.1]} 44... Bd5 {[%clk 0:01:27.3]} 45. Kc2 {[%clk 0:02:57.2]} 45... Kc7
{[%clk 0:01:25.9]} 46. Kd2 {[%clk 0:02:56.3]} 46... Kb6 {[%clk 0:01:22.1]} 47.
Ke2 {[%clk 0:02:55.2]} 47... Kb5 {[%clk 0:01:20.4]} 48. g4 {[%clk 0:02:52.9]}
48... h6 {[%clk 0:01:18.5]} 49. Kf2 {[%clk 0:02:51.9]} 49... Kb4 {[%clk
0:01:17.1]} 50. Kg3 {[%clk 0:02:50.9]} 50... Kc3 {[%clk 0:01:15.9]} 51. Kf4
{[%clk 0:02:50]} 51... Kxd3 {[%clk 0:01:14.5]} 52. g5 {[%clk 0:02:49.3]} 52...
hxg5+ {[%clk 0:01:13]} 53. Kxg5 {[%clk 0:02:48.5]} 53... Ke3 {[%clk 0:01:11.7]}
54. f6 {[%clk 0:02:46.9]} 54... gxf6+ {[%clk 0:01:10.2]} 55. Kxf6 {[%clk
0:02:45.5]} 55... d3 {[%clk 0:01:08.9]} 56. h4 {[%clk 0:02:45.4]} 56... d2
{[%clk 0:01:08]} 57. h5 {[%clk 0:02:45.3]} 57... d1=Q {[%clk 0:01:06.5]} 58. h6
{[%clk 0:02:45.2]} 58... Qf1+ {[%clk 0:01:04.5]} 59. Ke7 {[%clk 0:02:45.1]}
59... Qh3 {[%clk 0:01:02.5]} 60. Kd6 {[%clk 0:02:42.7]} 60... Qxh6+ {[%clk
0:01:00.8]} 61. Kxd5 {[%clk 0:02:41.3]} 61... Qe6+ {[%clk 0:00:59.5]} 62. Kc5
{[%clk 0:02:40.4]} 62... Qxe5+ {[%clk 0:00:58.6]} 0-1

[Event "Live Chess"]
[Site "Chess.com"]
[Date "2024.06.02"]
[Round "-"]
[White "yarek"]
[Black "Pandreq"]
[Result "1-0"]
[WhiteElo "1760"]
[BlackElo "1232"]
[TimeControl "300"]
[EndTime "5:12:49 PDT"]
[Termination "yarek won on time"]

1. e4 {[%clk 0:04:57.2]} 1... Nf6 {[%clk 0:04:57.3]} 2. e5 {[%clk 0:04:55.3]}
2... Nd5 {[%clk 0:04:56.8]} 3. c4 {[%clk 0:04:54.1]} 3... Nb6 {[%clk 0:04:55.9]}
4. c5 {[%clk 0:04:53.7]} 4... Nd5 {[%clk 0:04:54.6]} 5. Bc4 {[%clk 0:04:53.3]}
5... e6 {[%clk 0:04:52.5]} 6. Nc3 {[%clk 0:04:52.9]} 6... Nc6 {[%clk 0:04:50]}
7. d4 {[%clk 0:04:41.1]} 7... d6 {[%clk 0:04:43.3]} 8. cxd6 {[%clk 0:04:18.6]}
8... Nxc3 {[%clk 0:04:31.7]} 9. bxc3 {[%clk 0:04:12.9]} 9... cxd6 {[%clk
0:04:26.5]} 10. exd6 {[%clk 0:04:08.7]} 10... Bxd6 {[%clk 0:04:22.8]} 11. Qg4
{[%clk 0:04:04.8]} 11... Qf6 {[%clk 0:04:04.7]} 12. Nf3 {[%clk 0:03:46.8]} 12...
e5 {[%clk 0:03:59.6]} 13. dxe5 {[%clk 0:03:42.3]} 13... Nxe5 {[%clk 0:03:56.6]}
14. Qe4 {[%clk 0:03:25.8]} 14... O-O {[%clk 0:03:51.6]} 15. Nxe5 {[%clk
0:03:17.3]} 15... Bxe5 {[%clk 0:03:49.9]} 16. O-O {[%clk 0:03:12.9]} 16... Bxc3
{[%clk 0:03:46.3]} 17. Bd3 {[%clk 0:03:10]} 17... g6 {[%clk 0:03:29.3]} 18. Rb1
{[%clk 0:03:05.5]} 18... Be5 {[%clk 0:03:18.8]} 19. Qc4 {[%clk 0:02:34.5]} 19...
Be6 {[%clk 0:03:11.6]} 20. Qa4 {[%clk 0:02:29.9]} 20... Rfd8 {[%clk 0:03:03.1]}
21. Be2 {[%clk 0:02:21.2]} 21... Bd5 {[%clk 0:02:44.9]} 22. Be3 {[%clk 0:02:14]}
22... Bc6 {[%clk 0:02:32.4]} 23. Qg4 {[%clk 0:02:09.9]} 23... Qd6 {[%clk
0:02:12.9]} 24. h4 {[%clk 0:02:03.7]} 24... Bd7 {[%clk 0:02:01.2]} 25. Qf3
{[%clk 0:02:00.1]} 25... b6 {[%clk 0:01:50.5]} 26. Rfd1 {[%clk 0:01:55.1]} 26...
Qc6 {[%clk 0:01:39.2]} 27. h5 {[%clk 0:01:24.9]} 27... Qxf3 {[%clk 0:01:27.7]}
28. Bxf3 {[%clk 0:01:24.8]} 28... Rac8 {[%clk 0:01:18.7]} 29. hxg6 {[%clk
0:01:17.6]} 29... hxg6 {[%clk 0:01:15]} 30. Rd5 {[%clk 0:01:16.8]} 30... Be6
{[%clk 0:00:57.7]} 31. Rxe5 {[%clk 0:01:14]} 31... Rc2 {[%clk 0:00:46.9]} 32. a4
{[%clk 0:01:09.7]} 32... Ra2 {[%clk 0:00:41.2]} 33. g3 {[%clk 0:01:04.1]} 33...
Rxa4 {[%clk 0:00:37.6]} 34. Kg2 {[%clk 0:01:03.1]} 34... Rc4 {[%clk 0:00:32.3]}
35. Be2 {[%clk 0:00:59.2]} 35... Rc2 {[%clk 0:00:29.8]} 36. Ba6 {[%clk
0:00:54.9]} 36... Rd5 {[%clk 0:00:24.3]} 37. Rxd5 {[%clk 0:00:52.4]} 37... Bxd5+
{[%clk 0:00:23.2]} 38. Kg1 {[%clk 0:00:46.2]} 38... Ra2 {[%clk 0:00:20.5]} 39.
Bd3 {[%clk 0:00:43.7]} 39... Be6 {[%clk 0:00:18.4]} 40. Bd4 {[%clk 0:00:41.8]}
40... b5 {[%clk 0:00:13.1]} 41. Bxb5 {[%clk 0:00:38.4]} 41... Rd2 {[%clk
0:00:10.9]} 42. Be3 {[%clk 0:00:36.5]} 42... Ra2 {[%clk 0:00:08.1]} 43. Rd1
{[%clk 0:00:35.4]} 43... a6 {[%clk 0:00:05.4]} 44. Bd3 {[%clk 0:00:31.2]} 44...
a5 {[%clk 0:00:03.9]} 45. Be4 {[%clk 0:00:28.4]} 45... a4 {[%clk 0:00:03]} 46.
Bc6 {[%clk 0:00:25.7]} 46... a3 {[%clk 0:00:02.3]} 47. Kg2 {[%clk 0:00:20.6]}
47... Rb2 {[%clk 0:00:01.4]} 48. Ra1 {[%clk 0:00:18.7]} 48... a2 {[%clk
0:00:00.5]} 49. Be4 {[%clk 0:00:16]} 1-0

[Event "Live Chess"]
[Site "Chess.com"]
[Date "2024.06.02"]
[Round "-"]
[White "IgorSchukin"]
[Black "TJ-W"]
[Result "1-0"]
[WhiteElo "1771"]
[BlackElo "1576"]
[TimeControl "300"]
[EndTime "5:13:09 PDT"]
[Termination "IgorSchukin won on time"]

1. e4 {[%clk 0:04:39.2]} 1... c5 {[%clk 0:04:58.4]} 2. a3 {[%clk 0:04:37.8]}
2... Nc6 {[%clk 0:04:57.3]} 3. b4 {[%clk 0:04:36.8]} 3... cxb4 {[%clk
0:04:53.7]} 4. axb4 {[%clk 0:04:36.3]} 4... Nxb4 {[%clk 0:04:41.6]} 5. c3 {[%clk
0:04:35.2]} 5... Nc6 {[%clk 0:04:40.1]} 6. d4 {[%clk 0:04:34.1]} 6... d5 {[%clk
0:04:39.5]} 7. exd5 {[%clk 0:04:33.2]} 7... Qxd5 {[%clk 0:04:38.1]} 8. Na3
{[%clk 0:04:32.2]} 8... e5 {[%clk 0:04:22.5]} 9. Nb5 {[%clk 0:04:29]} 9... Bd6
{[%clk 0:04:15.1]} 10. Bc4 {[%clk 0:04:25.4]} 10... Qxg2 {[%clk 0:03:59.2]} 11.
Nxd6+ {[%clk 0:04:22.2]} 11... Ke7 {[%clk 0:03:46]} 12. Nxf7 {[%clk 0:04:13.8]}
12... Qxh1 {[%clk 0:03:38.3]} 13. Kf1 {[%clk 0:04:08.2]} 13... Bh3+ {[%clk
0:03:33.4]} 14. Ke2 {[%clk 0:04:03.8]} 14... Qe4+ {[%clk 0:03:23.3]} 15. Be3
{[%clk 0:03:59.5]} 15... exd4 {[%clk 0:03:09.5]} 16. cxd4 {[%clk 0:03:39.9]}
16... Qg4+ {[%clk 0:02:50.7]} 17. f3 {[%clk 0:03:29.1]} 17... Qg2+ {[%clk
0:02:46.5]} 18. Bf2 {[%clk 0:03:21.6]} 18... Nf6 {[%clk 0:02:32.7]} 19. Nxh8
{[%clk 0:03:19.1]} 19... Rxh8 {[%clk 0:02:26.6]} 20. Nxh3 {[%clk 0:03:13]} 20...
Qxh3 {[%clk 0:02:22.3]} 21. Qc1 {[%clk 0:02:55.1]} 21... Qxh2 {[%clk 0:02:09.8]}
22. Qe3+ {[%clk 0:02:41.7]} 22... Kd8 {[%clk 0:01:58.4]} 23. Kd3 {[%clk
0:02:31.7]} 23... Re8 {[%clk 0:01:46]} 24. Qd2 {[%clk 0:02:10.3]} 24... a6
{[%clk 0:01:26.2]} 25. Re1 {[%clk 0:01:56]} 25... Rxe1 {[%clk 0:01:08.5]} 26.
Qxe1 {[%clk 0:01:54]} 26... Qd6 {[%clk 0:01:03.7]} 27. Qe6 {[%clk 0:01:27.6]}
27... Qxe6 {[%clk 0:01:00.6]} 28. Bxe6 {[%clk 0:01:26.4]} 28... Ke7 {[%clk
0:00:46]} 29. d5 {[%clk 0:01:24.7]} 29... Nb4+ {[%clk 0:00:42.8]} 30. Kc4 {[%clk
0:01:21.2]} 30... a5 {[%clk 0:00:26]} 31. Bc5+ {[%clk 0:01:18.7]} 31... Kd8
{[%clk 0:00:20.8]} 32. d6 {[%clk 0:00:56.8]} 32... Nc6 {[%clk 0:00:17.7]} 33.
Bb6+ {[%clk 0:00:53.6]} 33... Ke8 {[%clk 0:00:16.3]} 34. Bc8 {[%clk 0:00:47.9]}
34... h5 {[%clk 0:00:11.4]} 35. Bxb7 {[%clk 0:00:46.5]} 35... Ne5+ {[%clk
0:00:08.9]} 36. Kd4 {[%clk 0:00:42.5]} 36... Ned7 {[%clk 0:00:08]} 37. Bxa5
{[%clk 0:00:36.7]} 37... h4 {[%clk 0:00:07.4]} 38. Be1 {[%clk 0:00:29.3]} 38...
h3 {[%clk 0:00:06.6]} 39. Bg3 {[%clk 0:00:28.3]} 39... g5 {[%clk 0:00:03.6]} 40.
Bc6 {[%clk 0:00:23.9]} 40... Kd8 {[%clk 0:00:00.2]} 41. Ke3 {[%clk 0:00:18.3]}
1-0